bitfinex-derivatives/quotes_SOLF0:USTF0_20260311
["timestamp","ask_amount","ask_price","bid_price","bid_amount"]
[1773199093827,2.61239885,85.67,85.621,3.95032804]
[1773199094623,6.14177416,85.67,85.621,3.95032804]
[1773199094830,3.52937531,85.669,85.621,3.95032804]
[1773199095326,3.52937531,85.669,85.624,3.95032804]
[1773199095734,3.57229009,85.659,85.611,3.95032804]
[1773199096435,10.506,85.656,85.611,3.95032804]
[1773199097435,3.57229009,85.659,85.621,3.95032804]
[1773199098036,2.61239885,85.66,85.621,3.95032804]
[1773199099542,10.505,85.664,85.621,3.95032804]
[1773199101243,14.08810755,85.664,85.621,3.95032804]
[1773199101542,3.58470445,85.663,85.621,3.95032804]
[1773199101939,14.09070445,85.661,85.621,3.95032804]
[1773199103845,3.59183522,85.671,85.631,3.71298488]
[1773199106042,3.59268528,85.683,85.64,2.61239885]
[1773199106242,3.59268528,85.683,85.65,2.61239885]
[1773199106442,3.59268528,85.683,85.64,6.32538373]
[1773199107048,10.504,85.673,85.64,6.32538373]
[1773199107247,3.59268528,85.672,85.64,3.71298488]
[1773199108641,3.59268528,85.672,85.64,6.32538373]
[1773199110050,3.65141479,85.685,85.641,3.71298488]
[1773199110449,3.65141479,85.685,85.65,2.61239885]
[1773199110842,14.15441479,85.684,85.643,3.71298488]
[1773199111052,3.65141479,85.683,85.65,2.61239885]
[1773199111547,3.65141479,85.683,85.651,3.71298488]
[1773199116154,3.63384538,85.679,85.641,3.71298488]
[1773199117454,14.12900833,85.677,85.641,3.71298488]
[1773199117648,3.62500833,85.677,85.641,3.71298488]
[1773199118250,2.61239885,85.68,85.641,3.71298488]
[1773199119656,3.66595136,85.679,85.641,3.71298488]
[1773199119948,3.66595136,85.677,85.63,6.52829931]
[1773199120255,3.66595136,85.677,85.631,3.91590046]
[1773199120854,3.66595136,85.677,85.633,3.91590046]
[1773199121855,3.66595136,85.677,85.635,3.91590046]
[1773199123956,3.66595136,85.677,85.64,2.61239885]
[1773199124155,3.66595136,85.677,85.641,3.91590046]
[1773199127355,3.59526199,85.687,85.651,3.91590046]
[1773199127751,3.59526199,85.677,85.635,3.91590046]
[1773199127956,3.59526199,85.677,85.64,2.61239885]
[1773199128159,3.59526199,85.689,85.641,3.91590046]
[1773199128358,3.59526199,85.687,85.642,3.91590046]
[1773199128659,2.91639338,85.686,85.642,3.91590046]
[1773199128860,3.60495997,85.685,85.642,3.91590046]
[1773199130361,10.503,85.684,85.642,3.91590046]
[1773199131261,14.14885065,85.684,85.642,3.91590046]
[1773199136066,3.64673384,85.683,85.642,3.91590046]
[1773199137568,2.91643527,85.682,85.642,3.91590046]
[1773199137769,3.64673384,85.683,85.642,3.91590046]
[1773199137967,3.64070872,85.681,85.642,3.91590046]
[1773199140563,286.83830147,85.697,85.598,34.99]
[1773199140564,3.61682706,85.669,85.631,3.75402365]
[1773199144165,2.91689111,85.668,85.631,3.75402365]
[1773199144373,3.61682706,85.669,85.631,3.75402365]
[1773199144571,2.91689111,85.668,85.631,3.75402365]
[1773199144762,3.61682706,85.669,85.631,3.75402365]
[1773199144967,2.91689059,85.668,85.631,3.75402365]
[1773199145267,3.61682706,85.669,85.631,3.75402365]
[1773199145472,3.59096245,85.679,85.632,3.75402365]
[1773199145772,2.91669283,85.678,85.632,3.75402365]
[1773199145972,2.91669283,85.677,85.632,3.75402365]
[1773199146173,2.91669283,85.676,85.632,3.75402365]
[1773199146374,2.91669283,85.675,85.634,10.509]
[1773199146674,2.91669283,85.674,85.635,3.75402365]
[1773199146873,3.59096245,85.679,85.635,3.75402365]
[1773199146874,2.91669283,85.673,85.635,3.75402365]
[1773199147175,2.91669283,85.672,85.635,3.75402365]
[1773199147473,2.91669283,85.671,85.635,3.75402365]
[1773199147674,2.91669283,85.67,85.635,3.75402365]
[1773199147869,2.91669283,85.669,85.635,3.75402365]
[1773199148068,3.59096245,85.679,85.635,3.75402365]
[1773199148269,6.50529839,85.678,85.635,3.75402365]
[1773199148569,2.9167318,85.677,85.635,3.75402365]
[1773199148766,2.9167318,85.676,85.635,3.75402365]
[1773199149079,2.9167318,85.675,85.635,3.75402365]
[1773199149272,2.9167318,85.674,85.635,3.75402365]
[1773199149466,2.9167318,85.673,85.635,3.75402365]
[1773199149668,2.9167318,85.672,85.635,3.75402365]
[1773199149969,2.9167318,85.671,85.635,3.75402365]
[1773199150171,2.9167318,85.67,85.635,3.75402365]
[1773199150367,2.9167318,85.669,85.635,3.75402365]
[1773199150574,2.9167318,85.668,85.635,3.75402365]
[1773199150880,2.9167318,85.667,85.635,3.75402365]
[1773199151069,3.59465928,85.677,85.635,3.75402365]
[1773199151270,6.51311423,85.676,85.635,3.75402365]
[1773199151474,2.91673196,85.675,85.635,3.75402365]
[1773199151675,2.91673196,85.674,85.635,3.75402365]
[1773199151875,2.91673196,85.673,85.635,3.75402365]
[1773199152076,2.91673196,85.672,85.635,3.75402365]
[1773199152374,2.91673196,85.671,85.635,3.75402365]
[1773199152573,2.91673196,85.67,85.635,3.75402365]
[1773199152775,2.91673196,85.669,85.635,3.75402365]
[1773199152976,2.91673196,85.668,85.635,3.75402365]
[1773199153277,6.50945146,85.667,85.635,3.75402365]
[1773199153471,2.91693092,85.666,85.635,3.75402365]
[1773199153672,3.5927195,85.664,85.625,3.75402365]
[1773199153874,3.5927195,85.659,85.615,3.75402365]
[1773199155374,3.59337831,85.658,85.615,3.75402365]
[1773199155879,3.59337831,85.656,85.615,3.75402365]
[1773199156078,3.59337831,85.654,85.615,3.75402365]
[1773199156278,3.59337831,85.652,85.615,3.75402365]
[1773199156478,6.51083292,85.651,85.615,3.75402365]
[1773199156678,2.91745461,85.65,85.615,3.75402365]
[1773199156875,2.91745461,85.649,85.615,3.75402365]
[1773199157181,3.59123356,85.647,85.615,3.75402365]
[1773199161174,10.82525189,85.687,85.615,3.75402365]
[1773199161175,2.61515147,85.66,85.615,3.75402365]
[1773199161379,2.91737376,85.659,85.615,3.75402365]
[1773199161679,2.91737376,85.658,85.615,3.75402365]
[1773199161877,2.91737376,85.657,85.615,3.75402365]
[1773199162177,2.91737376,85.656,85.615,3.75402365]
[1773199162381,2.91737376,85.655,85.619,10.511]
[1773199162571,6.19493462,85.66,85.62,3.78308788]
[1773199162572,3.57363999,85.659,85.62,3.78308788]
[1773199162777,2.91736795,85.658,85.62,3.78308788]
[1773199162977,2.91736795,85.657,85.62,3.78308788]
[1773199163280,2.91736795,85.656,85.62,3.78308788]
[1773199163480,2.91736795,85.655,85.62,3.78308788]
[1773199163780,3.57363999,85.659,85.62,3.78308788]
[1773199163981,6.49100794,85.658,85.62,3.78308788]
[1773199164177,2.91736795,85.657,85.62,3.78308788]
[1773199164375,2.91736795,85.656,85.62,3.78308788]
[1773199164576,3.57363999,85.658,85.62,3.78308788]
[1773199164882,2.91736957,85.657,85.62,3.78308788]
[1773199165079,2.91736957,85.656,85.62,3.78308788]
[1773199165276,3.57363999,85.658,85.62,3.78308788]
[1773199165582,2.91736957,85.657,85.62,3.78308788]
[1773199165778,2.91736957,85.656,85.62,3.78308788]
[1773199166078,3.57363999,85.658,85.62,3.78308788]
[1773199166273,2.91736743,85.657,85.62,3.78308788]
[1773199166477,2.91736743,85.656,85.62,3.78308788]
[1773199166782,3.57363999,85.658,85.62,3.78308788]
[1773199166983,2.91736743,85.657,85.62,3.78308788]
[1773199167185,3.53525177,85.655,85.62,3.78308788]
[1773199167583,3.53525177,85.649,85.609,3.78308788]
[1773199167785,3.53525177,85.639,85.599,3.78308788]
[1773199168080,2.61515147,85.63,85.599,3.78308788]
[1773199169686,3.53525177,85.639,85.599,3.78308788]
[1773199170184,10.507,85.647,85.599,3.78308788]
[1773199170387,2.61515147,85.64,85.599,3.78308788]
[1773199171376,6.12689298,85.64,85.602,3.78308788]
[1773199171877,6.12689298,85.64,85.604,3.78308788]
[1773199174586,3.51174151,85.64,85.604,3.78308788]
[1773199177592,6.12689298,85.64,85.604,3.78308788]
[1773199179094,3.51174151,85.64,85.604,3.78308788]
[1773199184292,6.04227197,85.66,85.611,3.79152045]
[1773199184493,6.3423766,85.659,85.611,3.79152045]
[1773199184796,3.42471961,85.657,85.611,3.79152045]
[1773199185094,3.42471961,85.655,85.613,3.79152045]
[1773199186396,3.42471961,85.655,85.615,3.79152045]
[1773199187499,2.91745573,85.654,85.615,3.79152045]
[1773199187797,2.91745573,85.653,85.615,3.79152045]
[1773199187990,2.91745573,85.652,85.615,3.79152045]
[1773199188194,2.91745573,85.651,85.615,3.79152045]
[1773199188396,3.42471961,85.655,85.615,3.79152045]
[1773199188700,2.91745555,85.654,85.615,3.79152045]
[1773199188901,2.91745555,85.653,85.615,3.79152045]
[1773199189094,6.32434441,85.652,85.615,3.79152045]
[1773199189297,2.91745555,85.651,85.615,3.79152045]
[1773199189495,2.91745555,85.65,85.615,3.79152045]
[1773199189700,10.509,85.637,85.604,3.88663977]
[1773199189904,3.40814134,85.619,85.579,3.88663977]
[1773199190098,14.41505312,85.677,85.552,230.51911605]
[1773199190099,3.40814134,85.609,85.567,3.88663977]
[1773199190295,2.61515147,85.61,85.567,3.88663977]
[1773199190296,3.40814134,85.607,85.567,3.88663977]
[1773199190701,3.40814134,85.607,85.57,2.61515147]
[1773199190901,3.40814134,85.607,85.571,3.88663977]
[1773199191301,3.43157991,85.625,85.581,3.88663977]
[1773199191696,2.61515147,85.62,85.581,3.88663977]
[1773199192202,10.511,85.618,85.581,3.88663977]
[1773199192402,3.43157991,85.609,85.564,3.88663977]
[1773199192600,3.43157991,85.609,85.552,217.17667166]
[1773199192601,3.43157991,85.609,85.571,3.88663977]
[1773199193701,2.61515147,85.62,85.581,3.88663977]
[1773199193899,2.91876514,85.619,85.581,3.88663977]
[1773199194103,2.61515147,85.62,85.581,3.88663977]
[1773199194308,2.61515147,85.61,85.581,3.88663977]
[1773199194804,3.46914051,85.619,85.581,3.88663977]
[1773199195002,10.512,85.612,85.581,3.88663977]
[1773199195202,3.44340291,85.609,85.554,3.88663977]
[1773199195401,3.44340291,85.609,85.561,3.88663977]
[1773199196404,10.512,85.608,85.561,3.88663977]
[1773199196600,3.46758739,85.607,85.571,3.88663977]
[1773199196903,3.46758739,85.599,85.56,2.61515147]
[1773199197100,3.46758739,85.599,85.56,6.50179124]
[1773199197308,3.46758739,85.599,85.552,195.52911605]
[1773199197309,3.46758739,85.599,85.57,2.61515147]
[1773199197699,3.46758739,85.599,85.57,2.61972042]
[1773199199608,3.46758739,85.599,85.561,3.88663977]
[1773199200705,3.46394403,85.609,85.57,2.61972042]
[1773199201108,3.46394403,85.609,85.571,3.88663977]
[1773199202008,2.61972042,85.62,85.552,195.52911605]
[1773199202009,2.61972042,85.62,85.581,3.88663977]
[1773199202410,10.82525189,85.66,85.581,3.88663977]
[1773199202411,3.46954176,85.635,85.591,14.40063977]
[1773199202716,3.46954176,85.635,85.6,2.61972042]
[1773199207413,3.46954176,85.635,85.6,6.50636019]
[1773199208819,3.46978517,85.649,85.611,3.88663977]
[1773199210114,3.46978517,85.661,85.62,2.61972042]
[1773199210413,3.46978517,85.659,85.62,2.61972042]
[1773199210615,3.46406889,85.657,85.62,2.61972042]
[1773199210810,3.46406889,85.657,85.611,3.88663977]
[1773199212715,3.46406889,85.657,85.62,2.61972042]
[1773199213116,3.46406889,85.657,85.621,3.88663977]
[1773199213922,2.91741341,85.656,85.621,3.88663977]
[1773199214118,3.46406889,85.657,85.621,3.88663977]
[1773199215625,3.46406889,85.657,85.579,21.64755561]
[1773199215928,3.47443086,85.649,85.6,6.50636019]
[1773199216522,3.46056517,85.646,85.6,6.50636019]
[1773199216925,3.46056517,85.646,85.601,3.88663977]
[1773199218124,3.46056517,85.646,85.61,2.61972042]
[1773199218525,3.45395966,85.639,85.59,2.61972042]
[1773199218719,3.45395966,85.637,85.59,2.61972042]
[1773199219427,3.45395966,85.635,85.59,2.61972042]
[1773199219626,3.45370447,85.629,85.59,2.61972042]
[1773199222628,2.61972042,85.65,85.61,2.61972042]
[1773199222929,2.9180049,85.649,85.611,3.6764121]
[1773199223130,3.42126018,85.647,85.611,3.6764121]
[1773199223330,6.33926508,85.646,85.611,3.6764121]
[1773199223530,3.42126018,85.644,85.6,6.29613252]
[1773199223728,6.33926508,85.643,85.601,3.6764121]
[1773199223928,2.9180049,85.642,85.601,3.6764121]
[1773199224128,3.42126018,85.643,85.601,3.6764121]
[1773199224429,6.33921577,85.642,85.601,3.6764121]
[1773199224625,2.91795559,85.641,85.61,2.61972042]
[1773199224820,3.42126018,85.642,85.601,3.6764121]
[1773199225022,2.91799769,85.641,85.601,3.6764121]
[1773199225229,3.42126018,85.642,85.601,3.6764121]
[1773199225430,2.91799769,85.641,85.601,3.6764121]
[1773199225632,3.42126018,85.642,85.601,3.6764121]
[1773199225930,2.91799769,85.641,85.601,3.6764121]
[1773199226126,3.42188149,85.653,85.611,3.6764121]
[1773199226328,2.91775734,85.652,85.621,3.6764121]
[1773199226522,3.42188149,85.666,85.63,6.29613252]
[1773199226727,3.42188149,85.666,85.631,3.6764121]
[1773199227526,3.42188149,85.666,85.64,2.61972042]
[1773199227733,10.503,85.68,85.64,2.61972042]
[1773199227734,3.42143992,85.678,85.64,2.61972042]
[1773199228034,2.91697332,85.677,85.631,3.6764121]
[1773199228337,3.42143992,85.675,85.64,2.61972042]
[1773199228531,6.3281257,85.674,85.64,2.61972042]
[1773199228725,2.91697332,85.673,85.64,2.61972042]
[1773199228930,3.41115238,85.674,85.64,2.61972042]
[1773199229125,2.91697558,85.673,85.64,2.61972042]
[1773199229337,3.41115238,85.674,85.64,2.61972042]
[1773199229633,10.504,85.67,85.631,3.6764121]
[1773199234334,3.41115238,85.674,85.631,3.6764121]
[1773199234534,3.41115238,85.674,85.64,2.61972042]
[1773199237831,3.41115238,85.674,85.631,3.6764121]
[1773199237832,2.61972042,85.67,85.631,3.6764121]
[1773199238236,3.45233606,85.669,85.631,3.6764121]
[1773199238439,3.45457918,85.667,85.631,3.6764121]
[1773199239133,3.45457918,85.649,85.605,3.97139351]
[1773199239442,3.45457918,85.649,85.61,2.61972042]
[1773199239642,3.45457918,85.649,85.607,3.97139351]
[1773199239836,3.45457918,85.649,85.593,3.97139351]
[1773199240038,3.45457918,85.649,85.601,3.97139351]
[1773199242642,2.61972042,85.64,85.601,3.97139351]
[1773199243142,3.45457918,85.649,85.601,3.97139351]
[1773199245342,3.49510647,85.639,85.601,3.97139351]
[1773199248547,2.61972042,85.63,85.591,10.514]
[1773199248747,3.49510647,85.639,85.595,3.97139351]
[1773199249243,3.53853729,85.629,85.595,3.97139351]
[1773199251153,3.53994742,85.609,85.561,3.68452236]
[1773199251352,2.61972042,85.61,85.561,3.68452236]
[1773199252056,3.53994742,85.609,85.563,3.68452236]
[1773199257452,3.53994742,85.609,85.56,13.13772042]
[1773199257453,3.53994742,85.609,85.565,3.68452236]
[1773199263863,2.61988935,85.6,85.565,3.68452236]
[1773199264265,3.51354702,85.599,85.551,3.68452236]
[1773199264465,2.61988935,85.59,85.551,3.68452236]
[1773199264769,3.51305623,85.589,85.554,3.68452236]
[1773199266168,2.61988935,85.6,85.563,3.68452236]
[1773199266373,8.69545469,85.642,85.533,2.03323284]
[1773199266374,2.61988935,85.62,85.571,3.68452236]
[1773199266573,2.61988935,85.61,85.571,3.68452236]
[1773199266969,3.48592862,85.609,85.571,3.68452236]
[1773199267166,3.48592862,85.609,85.562,14.20252236]
[1773199267568,3.48592862,85.599,85.562,3.68452236]
[1773199268170,3.48592862,85.589,85.549,3.68452236]
[1773199270877,3.48592862,85.589,85.551,3.68452236]
[1773199275778,3.51318357,85.579,85.537,3.68452236]
[1773199276174,3.51318357,85.595,85.55,2.61988935]
[1773199276375,3.51318357,85.595,85.551,3.68452236]
[1773199276886,3.51318357,85.595,85.555,3.68452236]
[1773199277791,2.91969878,85.594,85.505,35.05]
[1773199277978,2.61988935,85.53,85.497,7.57197044]
[1773199278182,163.508,85.619,85.497,7.57197044]
[1773199278183,2.61988935,85.54,85.497,7.57197044]
[1773199278482,2.61988935,85.54,85.501,7.57197044]
[1773199278683,2.61988935,85.53,85.485,7.56908348]
[1773199279286,2.61988935,85.53,85.404,11.69]
[1773199279287,2.61988935,85.51,85.461,7.56908348]
[1773199279583,2.61988935,85.52,85.471,7.56914142]
[1773199279782,2.91969878,85.577,85.481,7.56914142]
[1773199279978,2.61988935,85.53,85.481,7.56914142]
[1773199280184,13.14288935,85.52,85.481,7.56914142]
[1773199280485,2.61988935,85.52,85.481,7.56914142]
[1773199281482,2.61988935,85.51,85.464,7.52677626]
[1773199281682,8.69545469,85.578,85.471,7.52677626]
[1773199281683,2.61988935,85.52,85.471,7.52677626]
[1773199281989,10.523,85.518,85.471,7.52677626]
[1773199282286,2.61988935,85.52,85.471,7.52677626]
[1773199284181,10.521,85.533,85.48,2.61988935]
[1773199284390,2.61988935,85.54,85.491,7.51270485]
[1773199285382,10.52,85.547,85.5,10.12536378]
[1773199285587,10.52,85.547,85.501,7.50547443]
[1773199285782,2.61988935,85.56,85.52,2.61988935]
[1773199286387,10.517,85.568,85.52,2.61988935]
[1773199286388,2.61988935,85.57,85.521,7.50547443]
[1773199286584,2.61988935,85.58,85.53,2.61988935]
[1773199287094,10.516,85.578,85.531,7.51377962]
[1773199288490,2.61988935,85.58,85.54,2.61988935]
[1773199289094,2.61988935,85.58,85.532,7.49277348]
[1773199289487,10.514,85.588,85.541,7.49277348]
[1773199289686,10.514,85.588,85.55,2.61988935]
[1773199290090,2.61988935,85.6,85.56,2.61988935]
[1773199290794,2.61988935,85.6,85.551,7.49277348]
[1773199293196,10.514,85.596,85.551,7.49277348]
[1773199293393,2.61988935,85.59,85.54,2.61988935]
[1773199293693,2.61988935,85.59,85.54,10.08666574]
[1773199294498,10.515,85.587,85.54,10.08666574]
[1773199294694,10.515,85.587,85.54,7.46677639]
[1773199295493,2.61988935,85.58,85.54,7.46677639]
[1773199296089,10.515,85.587,85.54,7.46677639]
[1773199296595,10.516,85.578,85.54,7.46677639]
[1773199298896,10.515,85.588,85.541,7.46203737]
[1773199304799,31.83135593,85.636,85.482,35.05]
[1773199304800,2.61988935,85.58,85.52,2.61988935]
[1773199305004,2.61988935,85.58,85.482,35.05]
[1773199305005,2.61988935,85.57,85.521,7.45006669]
[1773199306607,10.516,85.572,85.521,7.45006669]
[1773199310611,10.517,85.568,85.521,7.45006669]
[1773199312510,2.61988935,85.58,85.53,2.61988935]
[1773199312813,2.92068507,85.579,85.525,7.43378591]
[1773199313007,10.518,85.56,85.525,7.43378591]
[1773199323519,2.62252834,85.54,85.508,7.43557343]
[1773199324422,10.521,85.537,85.508,7.43557343]
[1773199324922,2.62252834,85.54,85.508,7.43557343]
[1773199325524,8.9045567,85.579,85.508,7.43557343]
[1773199325727,2.62252834,85.54,85.508,7.43557343]
[1773199326524,2.62252834,85.56,85.52,2.62252834]
[1773199326729,2.62252834,85.56,85.521,7.40784011]
[1773199327420,13.14052834,85.56,85.521,7.40784011]
[1773199328728,2.62252834,85.57,85.521,7.40784011]
[1773199330124,2.62252834,85.58,85.531,7.41351003]
[1773199330322,2.92058748,85.579,85.531,7.41351003]
[1773199330522,2.62252834,85.58,85.531,7.41351003]
[1773199331334,2.92024647,85.579,85.54,2.62252834]
[1773199331535,2.62252834,85.58,85.541,7.41122853]
[1773199331834,2.92024647,85.579,85.541,7.41122853]
[1773199332033,2.62252834,85.58,85.541,7.41122853]
[1773199332235,10.515,85.586,85.541,7.41122853]
[1773199332439,2.92024484,85.585,85.541,7.41122853]
[1773199332635,2.92024484,85.584,85.541,7.41122853]
[1773199332834,2.92024484,85.583,85.541,7.41122853]
[1773199333035,2.92024484,85.582,85.541,7.41122853]
[1773199333235,2.92024484,85.581,85.541,7.41122853]
[1773199333438,2.92024484,85.58,85.541,7.41122853]
[1773199333639,2.92024484,85.579,85.541,7.41122853]
[1773199333839,2.92024484,85.578,85.541,7.41122853]
[1773199334035,2.92024484,85.577,85.541,7.41122853]
[1773199334241,14.36856279,85.631,85.539,10.52]
[1773199334242,2.62252834,85.6,85.551,7.40361938]
[1773199334433,2.91994912,85.599,85.551,7.40361938]
[1773199334737,10.514,85.588,85.551,7.40361938]
[1773199335039,2.91994912,85.587,85.551,7.40361938]
[1773199335242,2.62252834,85.6,85.551,7.40361938]
[1773199335541,2.91990644,85.599,85.551,7.40361938]
[1773199335740,2.91990644,85.598,85.551,7.40361938]
[1773199335939,2.91990644,85.597,85.551,7.40361938]
[1773199336148,2.91990644,85.596,85.551,7.40361938]
[1773199336437,13.13552834,85.6,85.551,7.40361938]
[1773199336438,2.91990644,85.595,85.551,7.40361938]
[1773199336637,2.91990644,85.594,85.551,7.40361938]
[1773199336936,2.91990644,85.593,85.551,7.40361938]
[1773199337238,2.91990644,85.592,85.551,7.40361938]
[1773199337437,2.91990644,85.591,85.551,7.40361938]
[1773199337636,10.512,85.609,85.561,7.40185439]
[1773199337939,2.62252834,85.6,85.561,7.40185439]
[1773199338131,2.91970246,85.599,85.561,7.40185439]
[1773199338332,2.91970246,85.598,85.561,7.40185439]
[1773199338531,2.91970246,85.597,85.561,7.40185439]
[1773199338735,2.91970246,85.596,85.561,7.40185439]
[1773199338936,2.91970246,85.595,85.561,7.40185439]
[1773199339141,2.91970246,85.594,85.561,7.40185439]
[1773199339343,2.91970246,85.593,85.561,7.40185439]
[1773199339541,2.91970246,85.592,85.561,7.40185439]
[1773199339743,2.91970246,85.591,85.561,7.40185439]
[1773199339934,2.62252834,85.61,85.57,10.02048666]
[1773199340133,2.91955846,85.609,85.561,7.39795832]
[1773199340339,13.43155846,85.608,85.561,7.39795832]
[1773199340539,2.91955846,85.607,85.561,7.39795832]
[1773199340743,2.62252834,85.61,85.561,7.39795832]
[1773199340744,2.91955846,85.606,85.561,7.39795832]
[1773199341041,2.91955846,85.605,85.561,7.39795832]
[1773199341241,2.91955846,85.604,85.561,7.39795832]
[1773199341443,10.513,85.602,85.561,7.39795832]
[1773199341746,2.91955846,85.601,85.561,7.39795832]
[1773199342042,2.62252834,85.62,85.571,7.43747188]
[1773199342339,11.67685561,85.619,85.571,7.43747188]
[1773199342544,11.67685561,85.618,85.571,7.43747188]
[1773199342740,2.91936187,85.617,85.571,7.43747188]
[1773199342939,2.91936187,85.616,85.571,7.43747188]
[1773199343142,2.91936187,85.615,85.571,7.43747188]
[1773199343442,2.91936187,85.614,85.581,7.42852035]
[1773199343642,2.91936187,85.613,85.581,7.42852035]
[1773199343944,286.98480537,85.629,85.581,7.42852035]
[1773199344247,10.51,85.621,85.581,7.42852035]
[1773199344443,2.91901758,85.62,85.581,7.42852035]
[1773199344644,2.91901758,85.619,85.581,7.42852035]
[1773199344944,10.511,85.617,85.581,7.42852035]
[1773199345146,2.91901758,85.616,85.581,7.42852035]
[1773199345348,10.511,85.617,85.581,7.42852035]
[1773199345640,2.91905971,85.616,85.581,7.42852035]
[1773199345844,10.511,85.617,85.581,7.42852035]
[1773199348941,10.511,85.617,85.524,21.80285199]
[1773199348942,10.512,85.605,85.569,7.43811328]
[1773199351543,10.511,85.614,85.571,7.43386841]
[1773199356146,286.98480537,85.629,85.591,7.42702432]
[1773199356147,10.51,85.625,85.591,7.42702432]
[1773199356346,2.62252834,85.62,85.591,7.42702432]
[1773199364046,10.51,85.625,85.591,7.42702432]
[1773199364354,2.91887959,85.624,85.591,7.42702432]
[1773199364554,10.51,85.625,85.591,7.42702432]
[1773199366553,2.62252834,85.63,85.591,7.42702432]
[1773199366753,2.91867885,85.629,85.591,7.42702432]
[1773199366953,2.91867885,85.628,85.591,7.42702432]
[1773199367154,2.62252834,85.63,85.591,7.42702432]
[1773199367356,2.91867639,85.629,85.591,7.42702432]
[1773199367652,10.51,85.623,85.591,7.42702432]
[1773199368556,2.62252834,85.63,85.591,7.42702432]
[1773199368753,2.62252834,85.64,85.591,7.42702432]
[1773199368958,2.91842455,85.639,85.591,7.42702432]
[1773199369257,2.62252834,85.64,85.591,7.42702432]
[1773199369258,2.91842455,85.638,85.591,7.42702432]
[1773199369454,2.91842455,85.637,85.591,7.42702432]
[1773199369654,2.91842455,85.636,85.591,7.42702432]
[1773199369854,2.62252834,85.63,85.591,7.42702432]
[1773199371256,10.509,85.633,85.591,7.42702432]
[1773199371457,2.91833809,85.632,85.591,7.42702432]
[1773199371761,2.62252834,85.62,85.591,7.42702432]
[1773199372062,10.509,85.629,85.591,7.42702432]
[1773199372255,2.91838373,85.628,85.591,7.42702432]
[1773199372456,10.509,85.629,85.591,7.42702432]
[1773199372656,2.91838373,85.628,85.591,7.42702432]
[1773199372959,2.62252834,85.63,85.591,7.42702432]
[1773199373462,2.62252834,85.63,85.592,7.43889831]
[1773199373662,2.91837987,85.629,85.592,7.43889831]
[1773199373860,2.62252834,85.63,85.592,7.43889831]
[1773199374055,2.91837987,85.629,85.592,7.43889831]
[1773199374254,2.91838021,85.628,85.592,7.43889831]
[1773199374460,2.62252834,85.63,85.592,7.43889831]
[1773199374757,2.91838021,85.629,85.592,7.43889831]
[1773199374958,2.91838021,85.628,85.592,7.43889831]
[1773199375154,2.62252834,85.63,85.592,7.43889831]
[1773199375462,2.91838021,85.629,85.592,7.43889831]
[1773199375664,2.91838021,85.628,85.592,7.43889831]
[1773199375963,2.91838021,85.627,85.592,7.43889831]
[1773199376165,2.62252834,85.63,85.592,7.43889831]
[1773199376365,2.91838157,85.629,85.592,7.43889831]
[1773199376664,2.91838157,85.628,85.592,7.43889831]
[1773199376858,2.91838157,85.627,85.592,7.43889831]
[1773199377057,2.91838157,85.626,85.592,7.43889831]
[1773199377261,2.91838157,85.625,85.592,7.43889831]
[1773199377460,10.508,85.637,85.592,7.43889831]
[1773199377656,2.62252834,85.63,85.592,7.43889831]
[1773199377858,2.91838157,85.629,85.592,7.43889831]
[1773199378067,2.91838157,85.628,85.592,7.43889831]
[1773199378368,2.91838157,85.627,85.592,7.43889831]
[1773199378569,2.91838157,85.626,85.592,7.43889831]
[1773199378767,2.91838157,85.625,85.592,7.43889831]
[1773199378964,2.62252834,85.63,85.592,7.43889831]
[1773199379170,2.91833963,85.629,85.592,7.43889831]
[1773199379365,2.91833963,85.628,85.592,7.43889831]
[1773199379564,2.91833963,85.627,85.592,7.43889831]
[1773199379867,2.91833963,85.626,85.592,7.43889831]
[1773199380059,2.91833963,85.625,85.594,7.44933428]
[1773199380361,2.9183381,85.624,85.594,7.44933428]
[1773199380571,2.62252834,85.64,85.594,7.44933428]
[1773199380772,2.62252834,85.63,85.594,7.44933428]
[1773199380974,2.9183381,85.629,85.594,7.44933428]
[1773199381172,2.9183381,85.628,85.594,7.44933428]
[1773199381473,2.9183381,85.627,85.594,7.44933428]
[1773199381672,2.9183381,85.626,85.594,7.44933428]
[1773199381869,2.9183381,85.625,85.594,7.44933428]
[1773199382063,2.9183381,85.624,85.594,7.44933428]
[1773199382265,2.91833895,85.623,85.594,7.44933428]
[1773199382464,2.62252834,85.63,85.594,7.44933428]
[1773199382673,2.91833895,85.629,85.596,7.45140168]
[1773199382878,2.62252834,85.65,85.601,5.9922322]
[1773199383073,10.84258799,85.679,85.555,21.037]
[1773199383074,2.62252834,85.66,85.611,5.9922322]
[1773199383273,8.77566388,85.659,85.611,5.9922322]
[1773199383468,8.77566388,85.658,85.611,5.9922322]
[1773199383673,2.61676315,85.66,85.611,5.9922322]
[1773199385575,2.61676315,85.66,85.62,2.61676315]
[1773199385873,2.61676315,85.66,85.621,5.99955973]
[1773199386269,2.61676315,85.64,85.601,5.99955973]
[1773199386467,2.61676315,85.63,85.601,5.99955973]
[1773199387972,2.61676315,85.62,85.586,5.99526379]